[Event "Silves Open 2025"]
[Site "Fissul"]
[Date "2025.03.05"]
[Round "7.10"]
[White "Santos, Joao Artur Almeida"]
[Black "Malassagne, Raphael"]
[Result "0-1"]
[Annotator "TA"]
[ECO "B10"]
[WhiteElo "1950"]
[BlackElo "2267"]
[PlyCount "85"]
[EventDate "2025.03.03"]
[EventType "swiss"]
[EventCountry "POR"]
[SourceTitle "playchess.com"]
[Source "ChessBase"]
[SourceQuality "1"]
[TimeControl "5400+30"]

{[%evp 9,85,7,10,-2,11,14,32,28,24,7,24,12,12,0,0,0,11,-12,10,6,20,14,12,12,21,4,5,6,10,5,3,0,24,0,0,0,0,-28,-16,-12,-12,-26,-10,-210,-185,-237,-230,-221,-223,-262,-264,-260,-235,-271,-238,-251,-260,-266,-275,-275,-254,-256,-246,-423,-400,-700,-643,-568,-545,-1067,-1044,-945,619,-1565,-940,-29975,-29974,-5517]} 1. e4 {[%emt 0:00:03]} c6 {[%emt 0:00:04]} 2. Nf3 {[%emt 0:00:04]} d5 {[%emt 0:00:04]} 3. d3 {[%emt 0:00:03]} dxe4 {[%emt 0:00:05]} 4. dxe4 {[%emt 0:00:05]} Qxd1+ {[%emt 0:00:05]} 5. Kxd1 {[%emt 0:00:05][%cal Be1d1,Bd1c1,Bc1d2,Bd2e3][%mdl 32]} Nf6 {[%emt 0:00:05]} 6. Nfd2 {[%emt 0:00:09] B10: Caro-Kann: 2 d3 and 2 c4.} h5 {[%emt 0:00:14]} 7. h4 {[%emt 0:01:32]} g6 {[%emt 0:00:06]} 8. f3 {[%emt 0:02:02] White is slightly better.} Bh6 {[%emt 0:00:22]} 9. Nc4 {[%emt 0:01:18]} Bxc1 {[%emt 0:02:14]} 10. Kxc1 {[%emt 0:00:21]} Be6 {[%emt 0:01:22]} 11. a4 {[%emt 0:03:45]} Bxc4 {[%emt 0:08:34]} 12. Bxc4 {[%emt 0:00:05]} Nbd7 {[%emt 0:00:04]} 13. Kd2 $146 {[%emt 0:01:33]} (13. Nd2 e6 14. c3 Ke7 15. Kc2 Rad8 16. a5 a6 17. Be2 Ne5 18. Nb3 Nfd7 19. f4 {1-0 Raczek,K (2435)-Lukasiewicz,K (2322) POL-ch Rapid 2024 (8)}) 13... Ne5 {[%emt 0:15:58]} 14. Be2 {[%emt 0:00:54] Not much happening anymore} e6 {[%emt 0:03:05]} 15. Ke3 {[%emt 0:01:22]} Ke7 {[%emt 0:00:31]} (15... O-O-O {is interesting.} 16. Nd2 a5 17. g3 Kc7) 16. Nd2 {[%emt 0:01:12]} Ne8 {[%emt 0:03:06]} 17. Nc4 {[%emt 0:03:09]} Nxc4+ {[%emt 0:02:32]} 18. Bxc4 {[%emt 0:00:05]} Nd6 {[%emt 0:00:56]} 19. Bd3 {[%emt 0:00:57]} a5 {[%emt 0:05:45]} 20. Ra3 {[%emt 0:01:35]} Rhc8 {[%emt 0:03:49]} 21. Rd1 {[%emt 0:05:39]} e5 {[%emt 0:04:38]} 22. Be2 {[%emt 0:04:46]} Rd8 {[%emt 0:03:16][%cal Od6c4]} 23. Rd2 {[%emt 0:02:51]} Rd7 {[%emt 0:07:25]} 24. Ra1 {[%emt 0:00:45]} Rad8 {[%emt 0:02:06][%cal Od6c4]} 25. Rad1 $1 {[%emt 0:00:18]} f5 $36 {[%emt 0:03:39][%mdl 2048] Black has good play.} 26. Bf1 $2 {[%emt 0:01:13] Black continues to play with concentration.} (26. Bd3 $1 $11) 26... f4+ $19 {[%emt 0:01:51]} 27. Ke2 {[%emt 0:00:05][%csl Of1] White has a bad bishop} Nc4 {[%emt 0:01:21][%csl LRb2,LRd2]} 28. Rxd7+ {[%emt 0:00:36]} Rxd7 {[%emt 0:00:02]} 29. Rxd7+ {[%emt 0:00:08]} Kxd7 {[%emt 0:00:01][%mdl 4096] Endgame KB-KN} 30. b3 {[%emt 0:00:14]} Ne3 {[%emt 0:00:18]} 31. c3 {[%emt 0:00:45]} b5 {[%emt 0:02:20] Threatens to win with ...c5.} 32. g3 {[%emt 0:00:50]} bxa4 {[%emt 0:09:32]} 33. Bh3+ {[%emt 0:01:21]} Kd6 {[%emt 0:00:03]} 34. bxa4 {[%emt 0:01:40] [#]} Nc4 $1 {[%emt 0:00:11]} 35. g4 {[%emt 0:03:27]} hxg4 {[%emt 0:10:47]} 36. fxg4 {[%emt 0:00:18]} (36. Bxg4 {is the only way for White.} Nb2 37. Kd2) 36... Ke7 {[%emt 0:00:13]} (36... Nb6 $2 37. Kd3 $19) 37. g5 {[%emt 0:09:47]} (37. Kd3 $142 Nb2+ 38. Kc2 Nxa4 39. Bg2) 37... Nb2 {[%emt 0:01:59]} 38. Bc8 {[%emt 0:03:54]} Nxa4 {[%emt 0:00:10]} 39. Bb7 {[%emt 0:00:33]} Nxc3+ {[%emt 0:01:37]} 40. Kd3 {[%emt 0:00:26] [#]} f3 $4 {[%emt 0:04:35][%mdl 8192]} 41. Ke3 $4 {[%emt 0:00:27][%mdl 8192]} (41. Kxc3 $18 Kd6 42. Ba6) 41... a4 {[%emt 0:00:08] ( -> ...a3)} 42. h5 {[%emt 0:05:15]} gxh5 {[%emt 0:00:07]} 43. Kd2 {[%emt 0:01:28] Weighted Error Value: White=0.75/Black=0.23 (precise)   Loses game:     	White=1     	---        Mistake:       	White=2     	---        Inaccurate:     	White=1     	---        OK:         	White=12    	Black=13     Best:        	White=3     	Black=3      Strong:       	White=1     	Black=1} 0-1

[Event "Silves Open 2025"]
[Site "Fissul"]
[Date "2025.03.05"]
[Round "7.11"]
[White "Ryabukhin, Roman"]
[Black "Boesel, Alexander"]
[Result "1-0"]
[Annotator "ChessBase"]
[ECO "B12"]
[WhiteElo "2209"]
[BlackElo "2046"]
[PlyCount "35"]
[EventDate "2025.03.03"]
[EventType "swiss"]
[EventCountry "POR"]
[SourceTitle "playchess.com"]
[Source "ChessBase"]
[SourceQuality "1"]
[TimeControl "5400+30"]

1. e4 {[%emt 0:01:18]} c6 {[%emt 0:00:10]} 2. d4 {[%emt 0:00:35]} d5 {[%emt 0:00:09]} 3. e5 {[%emt 0:00:08]} c5 {[%emt 0:00:19]} 4. Nf3 {[%emt 0:00:25]} cxd4 {[%emt 0:00:19]} 5. Qxd4 {[%emt 0:00:09]} Nc6 {[%emt 0:00:16]} 6. Qf4 {[%emt 0:00:06]} e6 {[%emt 0:00:16]} 7. Nc3 {[%emt 0:00:21]} Nb4 {[%emt 0:00:24]} 8. Qd2 {[%emt 0:00:18]} Ne7 {[%emt 0:03:50]} 9. a3 {[%emt 0:08:13]} Nbc6 {[%emt 0:01:27]} 10. Bd3 {[%emt 0:00:11]} Ng6 {[%emt 0:00:53]} 11. Bxg6 {[%emt 0:00:08]} fxg6 {[%emt 0:01:46]} 12. O-O {[%emt 0:09:38]} Bc5 {[%emt 0:04:21]} 13. Qf4 {[%emt 0:00:55]} a6 {[%emt 0:10:42]} 14. b4 {[%emt 0:09:36]} Be7 {[%emt 0:07:06]} 15. Be3 {[%emt 0:00:52]} Rf8 {[%emt 0:04:43]} 16. Qg3 {[%emt 0:02:26]} Kf7 {[%emt 0:00:29]} 17. Rad1 {[%emt 0:02:04]} Qc7 {[%emt 0:02:25]} 18. Nxd5 {[%emt 0:00:40]} 1-0

[Event "Silves Open 2025"]
[Site "Fissul"]
[Date "2025.03.05"]
[Round "7.13"]
[White "Prata, Jose"]
[Black "Monteiro, Paulo Alexandre G"]
[Result "0-1"]
[Annotator "ChessBase"]
[ECO "C00"]
[WhiteElo "1839"]
[BlackElo "2221"]
[PlyCount "54"]
[EventDate "2025.03.03"]
[EventType "swiss"]
[EventCountry "POR"]
[SourceTitle "playchess.com"]
[Source "ChessBase"]
[SourceQuality "1"]
[TimeControl "5400+30"]

1. e4 {[%emt 1:31:00]} e6 {[%emt 1:31:00]} 2. d3 {[%emt 0:00:30]} d5 {[%emt 0:00:30]} 3. Nd2 {[%emt 0:00:30]} Nf6 {[%emt 0:00:30]} 4. Ngf3 {[%emt 0:00:30]} c5 {[%emt 0:00:30]} 5. g3 {[%emt 0:00:30]} b6 {[%emt 0:00:30]} 6. Bg2 {[%emt 0:00:30]} Bb7 {[%emt 0:00:30]} 7. e5 {[%emt 0:00:30]} Nfd7 {[%emt 0:00:30]} 8. O-O {[%emt 0:00:30]} Nc6 {[%emt 0:00:30]} 9. Re1 {[%emt 0:00:30]} Be7 {[%emt 0:00:30]} 10. Qe2 {[%emt 0:00:30]} Qc7 {[%emt 0:00:30]} 11. Nf1 {[%emt 0:00:30]} h6 {[%emt 0:00:30]} 12. h4 {[%emt 0:00:30]} O-O-O {[%emt 0:00:30]} 13. Bf4 {[%emt 0:00:30]} Rdg8 {[%emt 0:00:30]} 14. Qd2 {[%emt 0:00:30]} Qd8 {[%emt 0:00:30]} 15. h5 {[%emt 0:00:30]} g5 {[%emt 0:00:30]} 16. hxg6 {[%emt 0:00:30]} fxg6 {[%emt 0:00:30]} 17. Bh3 {[%emt 0:00:30]} Nf8 {[%emt 0:00:30]} 18. Bxh6 {[%emt 0:00:30]} g5 {[%emt 0:00:30]} 19. Bxf8 {[%emt 0:00:30]} Rxh3 {[%emt 0:00:30]} 20. Bxe7 {[%emt 0:00:30]} Qxe7 {[%emt 0:00:30]} 21. Kg2 {[%emt 0:00:30]} g4 {[%emt 0:00:30]} 22. N3h2 {[%emt 0:00:30]} Qh7 {[%emt 0:00:30]} 23. Qf4 {[%emt 0:00:30]} Rxh2+ {[%emt 0:00:30]} 24. Nxh2 {[%emt 0:00:30]} Qh3+ {[%emt 0:00:30]} 25. Kg1 {[%emt 0:00:30]} Rh8 {[%emt 0:00:30]} 26. Qxg4 {[%emt 0:00:30]} Qxh2+ {[%emt 0:00:30]} 27. Kf1 {[%emt 0:00:30]} Nd4 {[%emt 0:00:30]} 0-1

[Event "Silves Open 2025"]
[Site "Fissul"]
[Date "2025.03.05"]
[Round "7.14"]
[White "Santos, Antonio P"]
[Black "Peixoto, Helio Ricardo Soutin"]
[Result "1-0"]
[Annotator "TA"]
[ECO "A57"]
[WhiteElo "2209"]
[BlackElo "1918"]
[PlyCount "67"]
[EventDate "2025.03.03"]
[EventType "swiss"]
[EventCountry "POR"]
[SourceTitle "playchess.com"]
[Source "ChessBase"]
[SourceQuality "1"]
[TimeControl "5400+30"]

{[%evp 11,67,64,67,78,92,92,92,102,103,66,84,75,82,70,88,77,123,110,118,120,132,127,145,150,157,147,153,154,328,328,373,338,378,377,840,839,833,799,779,287,272,259,252,269,748,719,743,750,742,711,5143,5143,5418,5406,5631,5631,5490,5435]} 1. d4 {[%emt 0:02:37]} Nf6 {[%emt 0:00:08]} 2. c4 {[%emt 0:00:13]} c5 {[%emt 0:00:04]} 3. d5 {[%emt 0:00:10]} b5 {[%emt 0:00:05]} 4. cxb5 {[%emt 0:00:09]} a6 {[%emt 0:00:04]} 5. e3 {[%emt 0:00:07]} d6 {[%emt 0:00:17]} 6. Nc3 {[%emt 0:00:11]} g6 {[%emt 0:00:07]} 7. a4 $1 {[%emt 0:00:38][%mdl 4] now scores much better than the old 7.Nf3. A57: Benko/Volga Gambit.} axb5 {[%emt 0:01:18]} 8. Bxb5+ {[%emt 0:00:11]} Bd7 {[%emt 0:00:04]} 9. Bc4 {[%emt 0:01:20] White is better.} Bg7 {[%emt 0:00:06]} 10. h3 $146 {[%emt 0:00:57]} (10. Nge2 O-O 11. O-O Na6 12. Bd2 Qb6 13. Bxa6 Rxa6 14. Qc2 Rb8 15. Nb5 Bxb5 16. axb5 Rxa1 17. Rxa1 Qxb5 {0-1 Simko,L (1716)-Losonczy,I (1876) Eger Tavasz op 2009 (3)}) 10... O-O {[%emt 0:00:06]} 11. Nge2 {[%emt 0:00:20]} Na6 {[%emt 0:00:47]} 12. O-O {[%emt 0:00:29]} Nb4 {[%emt 0:00:22]} 13. e4 {[%emt 0:00:30]} Ne8 {[%emt 0:00:43]} (13... Be8 $142) 14. Be3 {[%emt 0:03:56]} Nc7 {[%emt 0:00:09]} 15. Qd2 {[%emt 0:08:40]} Qe8 {[%emt 0:08:16]} 16. b3 {[%emt 0:00:44]} f5 {[%emt 0:00:37]} 17. Rac1 {[%emt 0:08:40][%cal Ba1c1,Bc1c3,Bc3f3][%mdl 32]} Qf7 {[%emt 0:08:24]} 18. exf5 {[%emt 0:07:34]} Bxf5 {[%emt 0:07:20]} 19. Ng3 {[%emt 0:03:58]} Bxc3 $2 {[%emt 0:05:09] Loses the game.} (19... Bc8 $16 {was necessary.} 20. Nge4 Bb7) 20. Rxc3 $18 {[%emt 0:00:13]} (20. Qxc3 Na2 21. Nxf5 Qxf5 $16) 20... Ncxd5 {[%emt 0:00:26]} 21. Nxf5 {[%emt 0:00:15]} Qxf5 {[%emt 0:00:28]} 22. Bh6 {[%emt 0:00:50][%cal Of1e1] [#] And now Re1! would win. A strong pair of Bishops.} Rf7 $2 {[%emt 0:05:30]} (22... Rfe8 23. Re1 (23. Rf3 Qe5 $18) 23... Kh8) 23. Rf3 {[%emt 0:00:24]} Qe5 {[%emt 0:02:12]} 24. Re1 {[%emt 0:11:03]} Qd4 {[%emt 0:01:17]} 25. Qxd4 $2 {[%emt 0:02:43]} (25. Qe2 {White threatens Qe6 and mate.} Qe5 26. Qd1 (26. Rxf7 Kxf7 27. Qd1 Qh5 $18)) 25... cxd4 {[%emt 0:00:08]} 26. Bd2 {[%emt 0:00:07]} Rxf3 {[%emt 0:00:12]} 27. Bxb4 {[%emt 0:00:13]} (27. gxf3 Kf8 $16) 27... e6 {[%emt 0:12:04]} (27... Rf5) 28. Bxd5 {[%emt 0:00:39] White is clearly winning.} ({Less strong is} 28. gxf3 Nxb4 29. Bxe6+ (29. Rxe6 d5 $14) 29... Kg7 $16) (28. Bxd6 Rc3 $16) 28... exd5 {[%emt 0:00:13]} 29. gxf3 {[%emt 0:00:09] KRB-KR} Rb8 {[%emt 0:00:10]} 30. Bxd6 {[%emt 0:02:16]} Rxb3 {[%emt 0:00:08]} 31. a5 {[%emt 0:00:34][%cal Ba4a5,Ba5a6,Ba6a7][%mdl 32]} d3 {[%emt 0:01:57]} 32. a6 {[%emt 0:00:45] [#]} Rb6 {[%emt 0:00:43]} 33. a7 {[%emt 0:01:13]} Ra6 {[%emt 0:00:07]} 34. Re8+ {[%emt 0:00:10] Weighted Error Value: White=0.40/Black=1.14  Loses game:     	---       	Black=1      Mistake:       	---       	Black=3      Inaccurate:     	White=1     	---        OK:         	White=11    	Black=5      Best:        	White=2     	Black=1} 1-0

[Event "Silves Open 2025"]
[Site "Fissul"]
[Date "2025.03.05"]
[Round "7.15"]
[White "Santos, Jose P"]
[Black "Nguyen, Anh Khoi"]
[Result "0-1"]
[Annotator "TA"]
[ECO "C02"]
[WhiteElo "2273"]
[BlackElo "2520"]
[PlyCount "92"]
[EventDate "2025.03.03"]
[EventType "swiss"]
[EventCountry "POR"]
[SourceTitle "playchess.com"]
[Source "ChessBase"]
[SourceQuality "1"]
[TimeControl "5400+30"]

{[%evp 13,92,-2,0,-18,-13,-8,18,-30,6,-27,4,0,36,-30,-31,-39,-47,-42,-30,-57,-50,-51,-11,-33,-14,-43,-24,-43,-41,-44,-36,-56,-53,-62,-54,-65,-68,-89,-85,-81,-83,-92,-73,-76,-71,-91,-73,-96,-68,-89,-79,-91,-83,-387,-412,-406,-400,-430,-432,-588,-552,-543,-547,-591,-570,-590,-399,-664,-677,-818,-814,-1525,-1479,-1348,-1346,-29982,-29982,-29983,-5062,-5510,-1294]} 1. e4 {[%emt 1:31:00]} e6 {[%emt 1:31:00]} 2. d4 {[%emt 0:00:30]} d5 {[%emt 0:00:30]} 3. e5 {[%emt 0:00:30]} c5 {[%emt 0:00:30]} 4. c3 {[%emt 0:00:30]} Nc6 {[%emt 0:00:30]} 5. Nf3 {[%emt 0:00:30]} Nge7 {[%emt 0:00:30][%cal Bg8e7,Be7f5,Bf5h4][%mdl 32]} 6. Be2 {[%emt 0:00:30]} Nf5 {[%emt 0:00:30]} 7. dxc5 {[%emt 0:00:30] is more profitable than 7.0-0 at the moment.} Bxc5 {[%emt 0:00:30]} 8. b4 {[%emt 0:00:30] C02: French: Advance Variation.} Be7 {[%emt 0:00:30]} 9. O-O {[%emt 0:00:30]} Qc7 $146 {[%emt 0:00:30]} (9... O-O 10. Bd3 f6 11. Bf4 g5 12. b5 gxf4 13. bxc6 bxc6 14. Re1 fxe5 15. Nxe5 Bd6 {½-½ Payne,S (1888)-Gosling,B (1736) East Devon op 2009 (4)}) 10. Re1 {[%emt 0:00:30]} (10. Bf4 $142) 10... Nh4 {[%emt 0:00:30]} 11. Bd3 {[%emt 0:00:30] [#] Black must now prevent Nxh4.} Ng6 {[%emt 0:00:30]} 12. Qe2 {[%emt 0:00:30]} Bd7 {[%emt 0:00:30]} 13. Bb2 {[%emt 0:00:30]} ({Better is} 13. Na3 $14) 13... Nf4 $11 {[%emt 0:00:30]} 14. Qe3 {[%emt 0:00:30]} Nxd3 {[%emt 0:00:30]} 15. Qxd3 {[%emt 0:00:30]} O-O {[%emt 0:00:30]} 16. Na3 {[%emt 0:00:30][%cal Bb1a3,Ba3c2,Bc2d4][%mdl 32]} a6 {[%emt 0:00:30]} 17. Nc2 {[%emt 0:00:30]} f5 {[%emt 0:00:30]} 18. Ncd4 {[%emt 0:00:30]} Rac8 {[%emt 0:00:30]} 19. Rac1 {[%emt 0:00:30]} Qb6 {[%emt 0:00:30]} 20. a3 {[%emt 0:00:30]} Nxd4 {[%emt 0:00:30]} 21. Nxd4 {[%emt 0:00:30]} Rc4 {[%emt 0:00:30]} 22. Rb1 {[%emt 0:00:30]} Rfc8 {[%emt 0:00:30]} 23. Qe3 {[%emt 0:00:30][%cal Od4f5]} Qd8 {[%emt 0:00:30]} 24. Rbd1 {[%emt 0:00:30]} Qe8 {[%emt 0:00:30]} 25. Qf3 {[%emt 0:00:30][%cal Od4f5]} Bd8 {[%emt 0:00:30]} 26. h3 {[%emt 0:00:30]} Bb6 {[%emt 0:00:30]} 27. Qf4 {[%emt 0:00:30]} a5 {[%emt 0:00:30]} 28. Rd3 {[%emt 0:00:30]} axb4 {[%emt 0:00:30]} 29. cxb4 {[%emt 0:00:30]} Qe7 {[%emt 0:00:30]} 30. Qe3 {[%emt 0:00:30][%cal Od4f5]} Qf7 {[%emt 0:00:30]} (30... Rc2 {with more complications.} 31. Nxf5 exf5 32. Qxb6 Rxb2 33. Qxb7 Kf7) 31. Rdd1 {[%emt 0:00:30]} Qe8 {[%emt 0:00:30]} 32. Qd3 {[%emt 0:00:30]} Ba4 {[%emt 0:00:30][%cal Ob6d4] [#]} 33. Rc1 $2 {[%emt 0:00:30][%mdl 8192] This move loses the game for White.} (33. Rd2 $17) 33... Bxd4 $19 {[%emt 0:00:30]} 34. Rxc4 {[%emt 0:00:30]} Bxb2 {[%emt 0:00:30] A strong pair of Bishops.} (34... dxc4 35. Qxd4 h6 36. Kh2 $17) 35. Rxc8 {[%emt 0:00:30]} Qxc8 {[%emt 0:00:30]} 36. Qe2 {[%emt 0:00:30]} Bc3 {[%emt 0:00:30]} ({Less strong is} 36... Bxa3 37. Qa2 Bxb4 38. Rb1 $11) 37. Rc1 {[%emt 0:00:30]} d4 {[%emt 0:00:30] Against Qe3} 38. Qd3 {[%emt 0:00:30]} Qc6 {[%emt 0:00:30]} 39. Qg3 {[%emt 0:00:30]} Qd5 {[%emt 0:00:30]} 40. Qg5 $2 {[%emt 0:00:30]} (40. Rxc3 dxc3 41. Qxc3) 40... Bc6 {[%emt 0:00:30][%cal Oc3d2]} 41. b5 {[%emt 0:00:30]} Bxb5 {[%emt 0:00:30][%cal Ob5c6]} 42. Rb1 {[%emt 0:00:30]} Bc6 {[%emt 0:00:30][%cal Od4d3]} 43. f3 {[%emt 0:00:30]} d3 {[%emt 0:00:30][%cal Od3d2] and ...d2! would now be decisive} 44. Qe7 {[%emt 0:00:30]} d2 {[%emt 0:00:30]} 45. Rd1 {[%emt 0:00:30]} h6 {[%emt 0:00:30]} (45... Bd4+ $142 46. Kh1 Qb3 (46... Bxe5 $2 47. Rxd2 Bf6 48. Rxd5 $19) (46... Qxe5 $2 47. Qb4 $19) 47. Rf1 d1=Q (47... d1=N $2 48. Qd8+ Kf7 49. Qxd4 $19) 48. Qxe6+ Qxe6 49. Rxd1 Qxe5 (49... Bxe5 $2 50. Kg1 $19) 50. a4 Bb6 (50... Bxa4 $2 51. Rf1 $19) 51. a5 Qe2 (51... Qxa5 $2 52. Kh2 $19) 52. Rb1 Bxf3 (52... Bxa5 {leads to mate.} 53. Ra1 Bc7 54. Kg1 Qe3+ 55. Kh1 Qe5 56. Ra8+ Kf7 57. Rf8+ Kxf8 58. g3 Qxg3 59. h4 Bxf3#) 53. gxf3 Qxf3+ 54. Kh2 Qf2+ (54... Bxa5 55. Kg1 Qe3+ 56. Kf1 Qd3+ 57. Kg2 Qxb1 58. Kf3 Qe4+ 59. Kg3 Bc7+ 60. Kf2 Bb6+ 61. Kg3 Bg1 62. h4 Qg4#) 55. Kh1 Bc7 56. Rxb7 Qh2#) 46. Qh4 {[%emt 0:00:30]} Qd4+ {[%emt 0:00:30] Weighted Error Value: White=0.90/Black=0.30  Loses game:     	White=1     	---        Mistake:       	White=3     	---        Inaccurate:     	White=4     	Black=6      OK:         	White=5     	Black=12     Best:        	White=1     	Black=1} (46... Bd4+ $142 47. Kh2 Qxe5+ (47... Bxe5+ $2 48. Kh1 $19) 48. Qg3 Bxf3 (48... Qxg3+ $2 49. Kxg3 Bc3 50. Kf2 $19) 49. Rxd2 Bg1+ 50. Kxg1 Qxg3) 0-1

[Event "Silves Open 2025"]
[Site "Fissul"]
[Date "2025.03.05"]
[Round "7.16"]
[White "Dias, Ivo Rodrigues"]
[Black "Avelino, Camila Biscaya"]
[Result "1-0"]
[Annotator "NA RC"]
[ECO "D00"]
[WhiteElo "2097"]
[BlackElo "1906"]
[PlyCount "93"]
[EventDate "2025.03.03"]
[EventType "swiss"]
[EventCountry "POR"]
[SourceTitle "playchess.com"]
[Source "ChessBase"]
[SourceQuality "1"]
[TimeControl "5400+30"]

1. d4 {[%emt 1:31:00]} d5 2. Bf4 Nf6 3. e3 c5 {[%emt 0:08:31]} 4. c3 {[%emt 0:00:00]} Qb6 {[%emt 0:02:00]} 5. Qb3 {[%emt 0:00:00]} Nc6 {[%emt 0:09:31]} 6. Nd2 {[%emt 0:00:00]} g6 {[%emt 0:12:54]} 7. Qxb6 {[%emt 0:03:00]} axb6 8. Bc7 Nd7 9. Bb5 Bg7 10. Ngf3 O-O 11. O-O Ncb8 12. Nb3 c4 13. Nbd2 Na6 14. Bg3 {[%emt 0:00:00]} Nf6 {[%emt 0:03:37]} 15. e4 {[%emt 0:00:00]} dxe4 {[%emt 0:00:30]} 16. Ng5 {[%emt 0:00:00]} Bd7 {[%emt 0:00:30]} 17. Bxc4 {[%emt 0:00:00]} b5 {[%emt 0:00:30]} 18. Bb3 {[%emt 0:00:00]} Bf5 {[%emt 0:00:30]} 19. Rfe1 {[%emt 0:00:00]} b4 {[%emt 0:00:30]} 20. Ngxe4 {[%emt 0:00:00]} Rac8 {[%emt 0:00:30]} 21. Nxf6+ {[%emt 0:00:00]} Bxf6 {[%emt 0:00:30]} 22. Rac1 {[%emt 0:00:00]} bxc3 {[%emt 0:00:30]} 23. bxc3 {[%emt 0:00:00]} Nc7 {[%emt 0:00:30]} 24. d5 {[%emt 0:00:00]} Nb5 {[%emt 0:00:30]} 25. c4 {[%emt 0:00:00]} Bb2 {[%emt 0:00:30]} 26. Rb1 {[%emt 0:00:00]} Bc3 {[%emt 0:00:30]} 27. Rbd1 {[%emt 0:00:00]} Na3 {[%emt 0:00:30]} 28. Rxe7 {[%emt 0:00:00]} Bxd2 {[%emt 0:00:30]} 29. Rxd2 {[%emt 0:00:00]} Nxc4 {[%emt 0:00:30]} 30. Rd1 {[%emt 0:00:00]} Nb2 {[%emt 0:00:30]} 31. Rf1 {[%emt 0:00:00]} Rcd8 {[%emt 0:00:30]} 32. d6 {[%emt 0:00:00]} Rd7 {[%emt 0:00:30]} 33. Rfe1 {[%emt 0:00:00]} Nd3 {[%emt 0:00:30]} 34. Rxd7 {[%emt 0:00:00]} Bxd7 {[%emt 0:00:30]} 35. Re7 {[%emt 0:00:00]} Bc6 {[%emt 0:00:30]} 36. d7 {[%emt 0:00:00]} Rd8 {[%emt 0:00:30]} 37. Bxf7+ {[%emt 0:00:00]} Kg7 {[%emt 0:00:30]} 38. Bc4+ {[%emt 0:00:00]} Kf6 {[%emt 0:00:30]} 39. Rf7+ {[%emt 0:00:00]} Kg5 {[%emt 0:00:30]} 40. Bxd3 {[%emt 0:00:00]} Rxd7 {[%emt 0:00:30]} 41. Bf4+ {[%emt 0:00:00]} Kh5 {[%emt 0:00:30]} 42. Be2+ {[%emt 0:00:00]} Kh4 {[%emt 0:00:30]} 43. Bg3+ {[%emt 0:00:00]} Kg5 {[%emt 0:00:30]} 44. h4+ {[%emt 0:00:00]} Kh6 {[%emt 0:00:30]} 45. Bf4+ {[%emt 0:00:00]} g5 {[%emt 0:00:30]} 46. hxg5+ {[%emt 0:00:00]} Kg6 {[%emt 0:00:30]} 47. Rxd7 {[%emt 0:00:00]} 1-0

[Event "Silves Open 2025"]
[Site "Fissul"]
[Date "2025.03.05"]
[Round "7.17"]
[White "Albuquerque, Eduardo Ferreira"]
[Black "Esteves, Goncalo Maria Franco"]
[Result "1-0"]
[Annotator "NA RC"]
[ECO "A86"]
[WhiteElo "1897"]
[BlackElo "1962"]
[PlyCount "93"]
[EventDate "2025.03.03"]
[EventType "swiss"]
[EventCountry "POR"]
[SourceTitle "playchess.com"]
[Source "ChessBase"]
[SourceQuality "1"]
[TimeControl "5400+30"]

1. d4 {[%emt 1:31:00]} f5 {[%emt 1:31:00]} 2. c4 {[%emt 0:00:30]} Nf6 {[%emt 0:00:30]} 3. Nc3 {[%emt 0:00:30]} g6 {[%emt 0:00:30]} 4. g3 {[%emt 0:00:30]} Bg7 {[%emt 0:00:30]} 5. Bg2 {[%emt 0:00:30]} O-O {[%emt 0:00:30]} 6. Nh3 {[%emt 0:00:30]} Nc6 {[%emt 0:00:30]} 7. d5 {[%emt 0:00:30]} Ne5 {[%emt 0:00:30]} 8. Qb3 {[%emt 0:00:30]} c5 {[%emt 0:00:30]} 9. O-O {[%emt 0:00:30]} Rb8 {[%emt 0:00:30]} 10. a4 {[%emt 0:00:30]} b6 {[%emt 0:00:30]} 11. Rd1 {[%emt 0:00:30]} h6 {[%emt 0:00:30]} 12. Nf4 {[%emt 0:00:30]} Qe8 {[%emt 0:00:30]} 13. h4 {[%emt 0:00:30]} a6 {[%emt 0:00:30]} 14. e4 {[%emt 0:00:30]} g5 {[%emt 0:00:30]} 15. hxg5 {[%emt 0:00:30]} hxg5 {[%emt 0:00:30]} 16. Nh3 {[%emt 0:00:30]} g4 {[%emt 0:00:30]} 17. Nf4 {[%emt 0:00:30]} fxe4 {[%emt 0:00:30]} 18. Nxe4 {[%emt 0:00:30]} Nxe4 {[%emt 0:00:30]} 19. Bxe4 {[%emt 0:00:30]} e6 {[%emt 0:00:30]} 20. Kg2 {[%emt 0:00:30]} Qf7 {[%emt 0:00:30]} 21. Qc2 {[%emt 0:00:30]} Re8 {[%emt 0:00:30]} 22. Rh1 {[%emt 0:00:30]} exd5 {[%emt 0:00:30]} 23. cxd5 {[%emt 0:00:30]} Bb7 {[%emt 0:00:30]} 24. Bd2 {[%emt 0:00:30]} c4 {[%emt 0:00:30]} 25. Bh7+ {[%emt 0:00:30]} Kf8 {[%emt 0:00:30]} 26. Bb4+ {[%emt 0:00:30]} Re7 {[%emt 0:00:30]} 27. Qf5 {[%emt 0:00:30]} Ke8 {[%emt 0:00:30]} 28. Bxe7 {[%emt 0:00:30]} Bxd5+ {[%emt 0:00:30]} 29. Nxd5 {[%emt 0:00:30]} Qxd5+ {[%emt 0:00:30]} 30. Qe4 {[%emt 0:00:30]} Qxe4+ {[%emt 0:00:30]} 31. Bxe4 {[%emt 0:00:30]} Kxe7 {[%emt 0:00:30]} 32. Rh7 {[%emt 0:00:30]} Kf8 {[%emt 0:00:30]} 33. Rd1 {[%emt 0:00:30]} b5 {[%emt 0:00:30]} 34. Rd6 {[%emt 0:00:30]} a5 {[%emt 0:00:30]} 35. Rd5 {[%emt 0:00:30]} d6 {[%emt 0:00:30]} 36. axb5 {[%emt 0:00:30]} a4 {[%emt 0:00:30]} 37. Rh1 {[%emt 0:00:30]} Ke7 {[%emt 0:00:30]} 38. Ra1 {[%emt 0:00:30]} Nd7 {[%emt 0:00:30]} 39. Rxa4 {[%emt 0:00:30]} Nc5 {[%emt 0:00:30]} 40. Ra7+ {[%emt 0:00:30]} Ke6 {[%emt 0:00:30]} 41. Rxc5 {[%emt 0:00:30]} dxc5 {[%emt 0:00:30]} 42. Rxg7 {[%emt 0:00:30]} Rxb5 {[%emt 0:00:30]} 43. Rb7 {[%emt 0:00:30]} Rb4 {[%emt 0:00:30]} 44. Rxb4 {[%emt 0:00:30]} cxb4 {[%emt 0:00:30]} 45. f4 {[%emt 0:00:30]} Kd6 {[%emt 0:00:30]} 46. Kf2 {[%emt 0:00:30]} Kc5 {[%emt 0:00:30]} 47. Ke3 {[%emt 0:00:30]} 1-0